bitfinex/quotes_ETHUSD_20250702
["timestamp","ask_amount","ask_price","bid_price","bid_amount"]
[1751460510781,0.8156,2440.0,2439.8,0.2248]
[1751460511324,0.8156,2440.0,2439.8,0.02]
[1751460511529,8.03394216,2439.9,2439.8,0.02]
[1751460511942,0.7559,2439.9,2439.8,0.02]
[1751460512554,1.72958665,2439.9,2439.8,0.02]
[1751460513437,1.93438665,2439.9,2439.8,0.02]
[1751460514067,1.93428713,2439.9,2439.8,0.02]
[1751460514239,2.94050448,2439.9,2439.8,0.02]
[1751460520787,3.49050448,2439.9,2439.8,0.02]
[1751460522681,10.18550448,2439.9,2439.8,0.02]
[1751460523087,2.94050448,2439.9,2439.8,0.02]
[1751460523293,9.63550448,2439.9,2439.8,0.02]
[1751460523496,10.18550448,2439.9,2439.8,0.02]
[1751460523661,9.21191735,2439.9,2439.8,0.02]
[1751460523862,10.1841127,2439.9,2439.8,0.02]
[1751460526176,11.80351156,2439.9,2439.8,0.02]
[1751460536296,21.80351156,2439.9,2439.8,0.02]
[1751460536496,22.61371639,2439.9,2439.8,0.02]
[1751460541183,20.1841127,2439.9,2439.8,0.02]
[1751460542109,20.1941127,2439.9,2439.8,0.02]
[1751460545810,20.19668844,2439.9,2439.8,0.02]
[1751460546209,10.55,2439.8,2439.1,0.2048]
[1751460546390,7.48284216,2439.4,2438.9,12.6727]
[1751460546590,0.97477109,2439.3,2439.0,0.2048]
[1751460546899,0.97477109,2439.2,2439.0,0.2048]
[1751460547220,0.97477109,2439.1,2439.0,0.2048]
[1751460549742,0.97477109,2439.1,2438.9,0.7707]
[1751460550041,0.97477109,2439.0,2438.9,0.7707]
[1751460556147,0.97559612,2439.0,2438.9,0.7707]
[1751460561158,0.97559612,2439.0,2438.9,5.79053986]
[1751460561364,0.97559612,2439.0,2438.9,5.99533986]
[1751460561537,6.689,2439.4,2439.1,4.87420191]
[1751460561730,0.9755143,2439.3,2439.1,4.87420191]
[1751460561936,0.9755143,2439.2,2439.1,6.0898689]
[1751460562523,1.62495851,2439.8,2439.6,4.09903262]
[1751460562723,1.62495851,2439.8,2439.7,4.92936461]
[1751460562922,0.97575436,2439.8,2439.7,5.13416461]
[1751460564834,0.97575436,2439.8,2439.7,1.0353]
[1751460565653,0.99575436,2439.8,2439.7,1.0353]
[1751460565952,0.99575436,2439.8,2439.7,5.13416461]
[1751460566127,0.02,2439.8,2439.7,6.05750345]
[1751460566868,0.02,2439.8,2439.7,1.95863884]
[1751460567463,0.02,2439.8,2439.7,6.05750345]
[1751460568224,0.02,2439.8,2439.7,1.95863884]
[1751460568726,0.02,2439.8,2439.7,6.05750345]
[1751460574864,0.02,2439.8,2439.7,1.95863884]
[1751460575374,0.02,2439.8,2439.7,6.05750345]
[1751460576367,0.02,2439.8,2439.7,1.95863884]
[1751460577466,0.02,2439.8,2439.7,6.05750345]
[1751460577667,0.02,2439.8,2439.7,1.95863884]
[1751460579785,0.02,2439.8,2439.7,6.05750345]
[1751460580380,0.02,2439.8,2439.7,1.95863884]
[1751460583571,0.02,2439.8,2439.7,0.2048]
[1751460585275,0.02,2439.8,2439.6,0.02]
[1751460585575,0.8168,2439.8,2439.6,0.02]
[1751460586365,0.97341837,2439.7,2439.6,0.02]
[1751460587090,1.79021837,2439.8,2439.6,0.02]
[1751460587269,0.97341837,2439.7,2439.6,0.02]
[1751460595953,9.07716053,2439.7,2439.6,0.02]
[1751460596876,1.79911837,2439.7,2439.6,0.02]
[1751460597570,9.07716053,2439.7,2439.6,0.02]
[1751460598887,1.79911837,2439.7,2439.6,0.02]
[1751460599087,2.06711027,2439.7,2439.6,0.02]
[1751460600699,0.97341837,2439.7,2439.6,0.02]
[1751460603899,9.04856053,2439.7,2439.6,0.02]
[1751460606105,0.97341837,2439.7,2439.6,0.02]
[1751460609908,0.97341837,2439.7,2439.6,4.94753262]
[1751460610065,0.97341837,2439.7,2439.6,5.15233262]
[1751460610267,0.97341837,2439.7,2439.6,6.07946977]
[1751460613413,0.97341837,2439.7,2439.6,1.98043715]
[1751460614107,0.97341837,2439.7,2439.6,1.0533]
[1751460614618,0.97341837,2439.7,2439.6,0.2248]
[1751460615075,0.97341837,2439.7,2439.6,4.32383262]
[1751460615272,0.97341837,2439.7,2439.6,5.14893262]
[1751460616299,0.02,2439.8,2439.7,4.09886461]
[1751460616517,0.99535217,2439.8,2439.7,5.02564433]
[1751460618289,0.99535217,2439.8,2439.7,0.92677972]
[1751460618795,0.99535217,2439.8,2439.7,5.02564433]
[1751460620535,0.99535217,2439.8,2439.7,0.92677972]
[1751460621024,0.99535217,2439.8,2439.7,5.02564433]
[1751460622343,0.02,2439.8,2439.7,5.02564433]
[1751460624116,0.02,2439.8,2439.7,0.92677972]
[1751460625208,0.02,2439.8,2439.7,5.02564433]
[1751460626439,0.02,2439.8,2439.7,15.82164433]
[1751460627998,0.02,2439.8,2439.6,0.2248]
[1751460628526,0.02,2439.8,2439.6,10.2248]
[1751460629533,0.02,2439.8,2439.6,0.2248]
[1751460635729,0.02,2439.8,2439.6,4.32381729]
[1751460636348,0.02,2439.8,2439.6,0.2248]
[1751460639868,0.97468262,2439.7,2439.6,0.2248]
[1751460643288,0.97468262,2439.7,2439.6,4.32383262]
[1751460643586,0.97468262,2439.7,2439.6,5.9319442]
[1751460645106,0.97468262,2439.7,2439.6,0.2248]
[1751460645976,0.97468262,2439.7,2439.6,4.32383262]
[1751460646791,0.97468262,2439.7,2439.6,0.2248]
[1751460652782,0.97468262,2439.7,2439.6,4.32383262]
[1751460653291,0.97468262,2439.7,2439.6,0.2248]
[1751460655769,0.97468262,2439.7,2439.6,4.32383262]
[1751460655964,0.97468262,2439.7,2439.6,5.24627868]
[1751460656289,0.97468262,2439.7,2439.6,1.14724606]
[1751460656466,0.97468262,2439.7,2439.6,0.2248]
[1751460656901,0.97468262,2439.7,2439.6,4.32383262]
[1751460657779,0.02,2439.8,2439.7,4.09886461]
[1751460658097,0.99496371,2439.8,2439.7,4.09886461]
[1751460658310,0.99496371,2439.8,2439.7,4.85706461]
[1751460658514,0.99496371,2439.8,2439.7,5.77715433]
[1751460659704,0.99496371,2439.8,2439.7,4.85706461]
[1751460660426,0.99496371,2439.8,2439.6,0.2248]
[1751460660716,0.97496371,2439.7,2439.6,0.2248]
[1751460663086,1.79756371,2439.7,2439.6,0.02]
[1751460664183,0.97496371,2439.7,2439.6,0.02]
[1751460664614,0.97496371,2439.7,2439.6,4.94287451]
[1751460664812,0.97496371,2439.7,2439.6,5.76187451]
[1751460665997,0.02,2439.8,2439.7,4.09886461]
[1751460666205,0.99493225,2439.8,2439.7,4.09886461]
[1751460670834,0.02,2439.8,2439.7,4.09886461]
[1751460671035,0.02,2439.8,2439.7,5.29103852]
[1751460671537,0.02,2439.8,2439.7,15.29103852]
[1751460671836,0.02,2439.8,2439.7,16.05813852]
[1751460672610,0.02,2439.8,2439.7,16.60813852]
[1751460673340,0.02,2439.8,2439.7,16.81293852]
[1751460676548,0.02,2440.0,2439.9,4.09852862]
[1751460676716,1e-08,2440.0,2439.9,31.40021749]
[1751460676930,1e-08,2440.0,2439.9,31.60501749]
[1751460677231,1e-08,2440.0,2439.9,24.32697533]
[1751460677832,0.97332947,2440.4,2440.3,4.09785682]
[1751460678033,0.02,2440.5,2440.3,12.80185682]
[1751460678235,0.02,2440.5,2440.4,5.0976889]
[1751460679443,0.02,2440.5,2440.4,15.0976889]
[1751460680035,0.01,2441.0,2440.6,4.64722166]
[1751460680235,0.97206648,2441.2,2441.1,14.09643086]
[1751460680423,0.97206648,2441.4,2441.2,4.09628589]
[1751460680613,0.97206648,2441.3,2441.2,4.09628589]
[1751460680822,0.97206648,2441.4,2441.2,10.76128589]
[1751460681046,0.97206648,2441.3,2441.2,10.76128589]
[1751460681254,0.02,2441.5,2441.3,4.09603971]
[1751460681558,0.99206648,2441.5,2441.4,10.76101048]
[1751460681757,0.02,2441.5,2441.4,10.76101048]
[1751460681926,0.99206648,2441.5,2441.4,10.76101048]
[1751460682127,0.02,2441.5,2441.4,10.76101048]
[1751460682556,0.02,2441.5,2441.4,11.90718935]
[1751460683937,0.02,2441.5,2441.1,0.8077]
[1751460684150,0.02,2441.5,2441.3,10.0]
[1751460684351,0.02,2441.5,2441.4,6.664]
[1751460684738,0.02,2441.5,2441.3,4.09615466]
[1751460684941,0.02,2441.5,2438.0,0.01]
[1751460684942,0.821,2441.4,2440.8,4.09691221]
[1751460685265,0.821,2441.2,2440.9,10.76077398]
[1751460685930,0.821,2441.2,2441.0,4.09666348]
[1751460686137,0.821,2441.2,2441.0,6.664]
[1751460686327,0.821,2441.2,2441.1,4.09651386]
[1751460686728,0.821,2441.2,2441.0,10.76058996]
[1751460687460,0.821,2441.2,2441.0,6.664]
[1751460687663,0.821,2441.2,2441.0,10.76067801]
[1751460687961,0.821,2441.2,2441.0,6.664]
[1751460688160,0.821,2441.2,2441.0,10.76065023]
[1751460688464,0.821,2441.2,2440.8,2.038]
[1751460688641,1.63090422,2441.2,2440.9,6.663]
[1751460689147,0.7683,2441.0,2440.9,6.663]
[1751460692069,0.7683,2441.0,2440.8,2.2428]
[1751460692070,0.7683,2441.0,2440.8,0.2048]
[1751460692271,0.7683,2441.0,2440.6,6.8678]
[1751460692458,0.7683,2441.0,2440.6,0.2048]
[1751460694476,1.67440464,2441.0,2440.6,0.2048]
[1751460695459,1.68440464,2441.0,2440.6,0.2048]
[1751460697872,0.7957,2440.8,2440.6,0.2048]
[1751460698040,0.7957,2440.8,2440.5,4.09745279]
[1751460699366,0.7957,2440.8,2440.5,4.09743702]
[1751460700246,0.7957,2440.8,2440.5,4.09740452]
[1751460700449,0.7957,2440.8,2440.6,4.09730743]
[1751460700650,0.8149,2441.0,2440.7,4.09708787]
[1751460700849,0.8149,2441.0,2440.6,4.09724035]
[1751460701073,0.8149,2441.0,2440.7,4.09708238]
[1751460701599,0.8149,2441.0,2440.7,4.09709375]
[1751460701874,0.8149,2441.0,2440.8,4.09692872]
[1751460702275,0.01,2441.0,2440.8,4.09692872]
[1751460703483,0.01,2441.0,2440.9,4.09684952]
[1751460703690,0.8049,2440.9,2440.4,0.7897]
[1751460703843,0.8049,2440.9,2440.5,4.09741729]
[1751460704177,0.8049,2440.9,2440.6,4.09722911]
[1751460704350,0.8049,2440.9,2440.6,4.09720797]
[1751460704549,0.8049,2440.9,2440.7,4.09715473]
[1751460705271,0.8049,2440.9,2440.6,4.09725274]
[1751460705478,0.8049,2440.9,2440.7,4.09709813]
[1751460706147,1.77696648,2440.9,2440.7,4.09709813]
[1751460706578,0.01,2441.0,2440.8,4.09701737]
[1751460706888,0.98206648,2441.0,2440.9,4.09684952]
[1751460707087,0.01,2441.0,2440.9,4.09684952]
[1751460708114,0.01,2441.0,2440.9,5.58453621]
[1751460710160,0.01,2441.0,2440.9,15.11063621]
[1751460713483,0.01,2441.0,2440.9,14.28253621]
[1751460714077,0.01,2441.0,2440.9,6.13284952]
[1751460717161,0.01,2441.0,2440.9,4.09684952]
[1751460717361,0.01,2441.0,2440.9,12.79484952]
[1751460717892,0.01,2441.0,2440.9,8.698]
[1751460718191,0.01,2441.0,2440.8,4.11689397]
[1751460718487,0.01,2441.0,2440.8,0.02]
[1751460718690,0.01,2441.0,2440.8,8.718]
[1751460718869,0.01,2441.0,2440.8,2.056]
[1751460719369,0.7912,2440.9,2440.8,0.02]
[1751460719558,1.59912422,2440.9,2440.8,0.02]
[1751460720570,2.57374533,2440.9,2440.8,0.02]
[1751460721184,2.57373655,2440.9,2440.8,0.02]
[1751460723685,1.76581233,2440.9,2440.8,0.02]
[1751460724197,0.97461233,2440.9,2440.8,0.02]
[1751460725671,1.79901233,2440.9,2440.8,0.02]
[1751460725871,2.00381233,2440.9,2440.8,0.02]
[1751460726895,2.00374031,2440.9,2440.8,0.02]
[1751460727201,2.93291856,2440.9,2440.8,0.02]
[1751460728317,2.00374031,2440.9,2440.8,0.02]
[1751460735913,0.97454031,2440.9,2440.8,0.02]
[1751460736691,0.97454031,2440.9,2440.8,4.11701737]
[1751460736898,0.97454031,2440.9,2440.8,0.02]
[1751460737997,0.97454031,2440.9,2440.8,4.11701737]
[1751460738198,0.97454031,2440.9,2440.8,4.95892621]
[1751460740215,0.97454031,2440.9,2440.8,0.86190884]
[1751460740420,0.97454031,2440.9,2440.8,4.11701737]
[1751460740915,0.01,2441.0,2440.8,4.11701737]
[1751460741224,0.97430497,2440.9,2440.8,4.11701737]
[1751460741387,0.97430497,2440.9,2440.8,0.02]
[1751460741590,0.97430497,2440.9,2440.8,4.11701737]
[1751460741788,0.97430497,2440.9,2440.8,4.95890833]
[1751460742011,0.01,2441.0,2440.8,4.95890833]
[1751460742189,0.01,2441.0,2440.9,4.09684952]
[1751460742397,0.98429698,2441.0,2440.9,4.88344952]
[1751460742719,0.01,2441.0,2440.9,5.08824952]
[1751460743023,0.01,2441.0,2440.9,6.0929653]
[1751460743721,0.01,2441.0,2440.9,1.99611578]
[1751460743930,0.01,2441.0,2440.9,6.0929653]
[1751460744725,0.01,2441.0,2440.9,1.20951578]
[1751460744918,0.01,2441.0,2440.9,5.3063653]
[1751460746303,0.01,2441.0,2440.9,6.0846653]
[1751460747240,0.01,2441.0,2440.9,16.0846653]
[1751460749936,0.01,2441.0,2440.9,22.7446653]
[1751460752936,0.01,2441.0,2440.9,16.0846653]
[1751460753143,0.01,2441.0,2440.9,15.3063653]
[1751460756217,0.01,2441.0,2440.9,15.3263653]
[1751460758551,0.01,2441.0,2440.9,5.3263653]
[1751460758848,0.01,2441.0,2440.9,0.2248]
[1751460764439,0.01,2441.0,2440.9,0.02]
[1751460769127,2.30667741,2441.0,2440.9,0.02]
[1751460769358,2.51147741,2441.0,2440.9,0.02]
[1751460769584,9.78951957,2441.0,2440.9,0.02]
[1751460769733,10.93096738,2441.0,2440.9,0.02]
[1751460773063,3.10292522,2441.0,2440.9,0.02]
[1751460773233,1.18997741,2441.0,2440.9,0.02]
[1751460776749,0.98517741,2441.0,2440.9,0.02]
[1751460778181,0.98517741,2441.0,2440.9,0.2248]
[1751460780381,1.75317741,2441.0,2440.9,0.2248]
[1751460780585,2.65629937,2441.0,2440.9,0.02]
[1751460781787,9.93434153,2441.0,2440.9,0.02]
[1751460783082,11.55930004,2441.0,2440.9,0.02]
[1751460784187,2.65629937,2441.0,2440.9,0.02]
[1751460784394,9.03121957,2441.0,2440.9,0.02]
[1751460787383,1.75317741,2441.0,2440.9,0.02]
[1751460787888,0.98517741,2441.0,2440.9,0.02]
[1751460788596,8.26321957,2441.0,2440.9,0.02]
[1751460788765,10.72127808,2441.0,2440.9,0.02]
[1751460788966,12.72362967,2441.0,2440.9,0.02]
[1751460789567,11.09867116,2441.0,2440.9,0.02]
[1751460792470,3.820629,2441.0,2440.9,0.02]
[1751460792799,1.81827741,2441.0,2440.9,0.02]
[1751460793172,0.98517741,2441.0,2440.9,0.02]
[1751460799115,1.80087741,2441.0,2440.9,0.02]
[1751460799314,8.45987741,2441.0,2440.9,0.02]
[1751460802597,19.00987741,2441.0,2440.9,0.02]
[1751460802803,24.50282677,2441.0,2440.9,0.02]
[1751460804001,1.3446,2440.9,2440.8,0.02]
[1751460804212,39.59781957,2440.9,2440.8,0.02]
[1751460804617,57.51781957,2440.9,2440.8,0.02]
[1751460805130,59.95428173,2440.9,2440.8,0.02]
[1751460805426,60.96421547,2440.9,2440.8,0.02]
[1751460805835,0.55,2440.7,2439.9,2.8155]
[1751460805998,0.2048,2440.2,2439.9,2.8155]
[1751460806325,0.2048,2440.2,2439.9,0.7815]
[1751460806525,0.97415496,2440.1,2439.9,0.7815]
[1751460806723,0.2048,2440.2,2439.9,0.7815]
[1751460806927,0.97415504,2440.1,2439.9,0.7815]
[1751460807230,0.97384349,2440.1,2439.9,0.7815]
[1751460808129,0.2048,2440.2,2439.9,0.7815]
[1751460809533,8.25138549,2440.1,2439.9,0.02]
[1751460809719,0.2048,2440.0,2439.9,0.02]
[1751460810426,1.17795503,2440.0,2439.9,0.02]
[1751460811117,0.2048,2440.0,2439.9,0.02]
[1751460811429,1.17795503,2440.0,2439.9,0.02]
[1751460811627,0.2048,2440.0,2439.9,0.02]
[1751460811833,1.17795503,2440.0,2439.9,0.02]
[1751460812127,0.2048,2440.0,2439.9,0.02]
[1751460812338,1.17795503,2440.0,2439.9,0.02]
[1751460812536,0.97315503,2440.1,2439.9,0.8425]
[1751460812736,0.97315503,2440.0,2439.9,0.8425]
[1751460812941,0.97315503,2440.1,2439.9,0.8425]
[1751460813245,0.97315503,2440.1,2439.9,4.94093407]
[1751460813607,0.97315503,2440.1,2440.0,4.09836065]
[1751460813803,0.97315503,2440.1,2440.0,4.91496065]
[1751460814039,0.97315503,2440.4,2440.1,4.09818429]
[1751460814354,0.97150912,2440.3,2440.2,0.7987]
[1751460814708,0.97150912,2440.3,2440.2,4.89672475]
[1751460814935,0.97150912,2440.3,2440.2,0.7987]
[1751460815147,0.97150912,2440.3,2439.9,0.02]
[1751460815148,8.24955128,2440.3,2439.9,0.02]
[1751460815321,0.97150912,2440.2,2439.9,0.02]
[1751460816221,7.63150912,2440.2,2439.9,0.02]
[1751460818029,6.66,2440.2,2439.9,0.02]
[1751460818341,7.42315091,2440.2,2439.9,0.02]
[1751460818557,8.39466003,2440.2,2439.9,0.02]
[1751460818725,7.42315091,2440.2,2439.9,0.02]
[1751460819109,8.39466003,2440.2,2439.9,0.02]
[1751460819308,7.42315091,2440.2,2439.9,0.02]
[1751460820251,0.839466,2440.1,2439.9,0.02]
[1751460822937,1.81097512,2440.1,2439.9,0.02]
[1751460825157,2.01577512,2440.1,2439.9,0.02]
[1751460827127,0.97150912,2440.0,2439.9,0.02]
[1751460842143,0.97150912,2440.0,2439.9,0.8122]
[1751460844742,1.2515601,2440.0,2439.9,0.02]
[1751460844943,0.97150912,2440.0,2439.9,0.02]
[1751460846160,0.97150912,2440.0,2439.9,0.7902]
[1751460847676,1.62420065,2440.2,2440.1,0.8189]
[1751460847882,1.62420065,2440.2,2440.1,4.91709269]
[1751460847883,0.97664933,2440.2,2440.1,4.91709269]
[1751460848174,0.97664933,2440.2,2440.1,1.94771279]
[1751460848494,0.97664933,2440.2,2440.1,5.12189269]
[1751460849684,0.97664933,2440.2,2440.1,1.0237]
[1751460850794,0.97664933,2440.2,2440.1,5.12189269]
[1751460851773,0.97664933,2440.2,2440.1,1.0237]
[1751460853695,0.97664933,2440.2,2440.1,5.12189269]
[1751460853896,0.97664933,2440.2,2440.1,6.04590776]
[1751460854396,8.48800065,2440.7,2440.2,4.0980222]
[1751460854601,0.97527827,2440.6,2440.1,5.12178765]
[1751460854766,0.97527827,2440.5,2440.1,5.12178765]
[1751460854967,0.97527827,2440.4,2440.2,4.09798546]
[1751460855307,1.63420065,2440.8,2440.3,4.0977412]
[1751460855505,0.97520651,2440.7,2440.4,0.2048]
[1751460855811,1.63420065,2440.8,2440.4,0.2048]
[1751460855812,0.97520651,2440.6,2440.4,0.2048]
[1751460856008,0.97520651,2440.5,2440.4,5.31340169]
[1751460856567,0.97520651,2440.5,2440.4,6.12030169]
[1751460857700,0.97520651,2440.7,2440.4,6.12030169]
[1751460857888,0.01,2440.8,2440.4,6.12030169]
[1751460857889,0.97520651,2440.6,2440.4,6.12030169]
[1751460858090,0.97455244,2440.7,2440.4,6.12030169]
[1751460858400,0.97455244,2440.6,2440.5,1.02181468]
[1751460858595,0.01,2440.8,2440.5,1.02181468]
[1751460858596,0.97455244,2440.7,2440.5,1.02181468]
[1751460858788,0.97455244,2440.6,2440.5,1.02181468]
[1751460859100,0.97455244,2440.7,2440.5,1.02181468]
[1751460859300,0.01,2440.8,2440.5,1.02181468]
[1751460859469,0.9743159,2440.7,2440.5,1.02181468]
[1751460859797,0.01,2440.8,2440.5,1.02181468]
[1751460859996,0.9743152,2440.7,2440.5,1.02181468]
[1751460860204,0.97412076,2440.7,2440.4,1.0117]
[1751460860885,0.97412076,2440.7,2440.4,5.10935246]
[1751460861410,0.97412076,2440.7,2440.5,4.09737737]
[1751460861613,0.01,2440.8,2440.6,0.2048]
[1751460861765,0.98412076,2440.8,2440.6,0.2048]
[1751460861971,0.01,2440.8,2440.6,0.2048]
[1751460862199,0.98412076,2440.8,2440.6,0.2048]
[1751460862508,0.01,2440.8,2440.6,0.2048]
[1751460862803,0.98412076,2440.8,2440.6,0.2048]
[1751460862973,0.01,2440.8,2440.6,0.2048]
[1751460863174,0.98412076,2440.8,2440.6,0.2048]
[1751460863375,0.01,2440.8,2440.6,0.2048]
[1751460863582,0.98412076,2440.8,2440.6,4.30202786]
[1751460863787,0.01,2440.8,2440.7,5.69103809]
[1751460864103,0.98412076,2440.8,2440.7,0.7539]
[1751460864301,0.01,2440.8,2440.7,0.7539]
[1751460865996,0.01,2440.8,2440.7,4.85108523]
[1751460866198,0.01,2440.8,2440.7,0.7539]
[1751460866404,0.01,2440.8,2440.6,0.2048]
[1751460869614,3.51,2440.8,2440.6,0.2048]
[1751460869826,4.05741208,2440.8,2440.4,0.02]
[1751460870106,4.05741208,2440.8,2440.5,0.2048]
[1751460871094,4.05741208,2440.8,2440.5,4.30222422]
[1751460871307,3.51,2440.8,2440.5,0.2048]
[1751460872091,0.01,2440.8,2440.5,0.2048]
[1751460873123,0.98412076,2440.8,2440.5,0.2048]
[1751460873321,0.01,2440.8,2440.5,0.2048]
[1751460873486,0.98412076,2440.8,2440.5,0.2048]
[1751460873693,1.76732076,2440.7,2440.5,0.2048]
[1751460874419,2.69238292,2440.7,2440.5,0.2048]
[1751460874623,2.69238292,2440.7,2440.4,0.02]
[1751460874808,0.97412076,2440.6,2440.4,0.02]
[1751460874987,1.17892076,2440.7,2440.4,0.02]
[1751460875186,0.2048,2440.7,2440.4,0.02]
[1751460875716,0.01,2440.8,2440.4,0.02]
[1751460876030,0.97489567,2440.7,2440.4,0.2248]
[1751460876219,0.97489567,2440.6,2440.4,0.2248]
[1751460876523,0.97489567,2440.7,2440.4,0.2248]
[1751460876681,0.97489567,2440.6,2440.4,0.2248]
[1751460876883,0.97489567,2440.5,2440.4,4.32245404]
[1751460877087,0.97489567,2440.5,2440.4,0.2248]
[1751460879497,0.97489567,2440.5,2440.4,4.3224889]
[1751460879915,0.97489567,2440.5,2440.4,5.1125889]
[1751460880217,0.97489567,2440.5,2440.4,6.03361995]
[1751460881407,0.97489567,2440.7,2440.5,4.09751175]
[1751460881611,0.97489567,2440.6,2440.5,4.09751175]
[1751460882001,0.97489567,2440.6,2440.5,4.30231175]
[1751460882404,0.97646931,2440.6,2440.5,4.30231175]
[1751460884315,0.97646931,2440.6,2440.5,0.2048]
[1751460884829,0.97646931,2440.6,2440.4,0.02]
[1751460885024,0.97646931,2440.5,2440.4,0.02]
[1751460886895,1.25701631,2440.5,2440.4,0.02]
[1751460888233,1.25751304,2440.5,2440.4,0.02]
[1751460889300,1.99876604,2440.5,2440.4,0.02]
[1751460892057,1.18176604,2440.5,2440.4,0.02]
[1751460892232,0.97696604,2440.5,2440.4,0.02]
[1751460899548,0.97696604,2440.5,2440.4,4.3224889]
[1751460899711,0.97696604,2440.5,2440.4,5.1088889]
[1751460899914,0.01,2440.8,2440.5,4.09748476]
[1751460900110,0.97697022,2440.7,2440.4,5.6196985]
[1751460900326,0.97697022,2440.6,2440.4,5.4148985]
[1751460900541,0.97697022,2440.5,2440.4,5.4148985]
[1751460900734,0.01,2440.8,2440.6,4.30215117]
[1751460900933,0.01,2440.8,2440.7,4.89938523]
[1751460901146,0.98701838,2440.8,2440.7,1.007]
[1751460901347,0.98701838,2440.8,2440.7,5.10418523]
[1751460902046,0.98701838,2440.8,2440.7,1.007]
[1751460902451,0.01,2440.8,2440.7,1.007]
[1751460902648,0.98687055,2440.8,2440.7,2.02434729]
[1751460902850,0.01,2440.8,2440.7,2.02434729]
[1751460903242,0.98691368,2440.8,2440.7,1.007]
[1751460905021,0.98691368,2440.8,2440.7,0.2048]
[1751460906154,0.01,2440.8,2440.7,0.2048]
[1751460908575,0.01,2440.8,2440.7,4.30198523]
[1751460908765,0.01,2440.8,2440.7,0.2048]
[1751460914244,0.01,2440.8,2440.7,4.30198523]
[1751460914448,0.01,2440.8,2440.7,0.2048]
[1751460914965,0.01,2440.8,2440.7,4.30198523]
[1751460915789,0.01,2440.8,2440.7,5.14391101]
[1751460915944,0.01,2440.8,2440.7,5.94281101]
[1751460918492,0.01,2440.8,2440.7,13.2113119]
[1751460920577,0.01,2440.8,2440.7,13.0713119]
[1751460921980,0.01,2440.8,2440.7,23.0713119]
[1751460925679,0.01,2440.8,2440.7,28.3713119]
[1751460926788,1e-08,2440.8,2440.7,33.5923119]
[1751460927756,0.02,2441.5,2441.4,4.09601048]
[1751460928162,0.02,2441.5,2441.4,4.30001048]
[1751460934303,0.02,2441.5,2441.4,0.204]
[1751460935391,0.02,2441.5,2441.1,14.09642968]
[1751460935596,0.02,2441.5,2441.2,0.2048]
[1751460935901,0.7721,2441.4,2441.2,0.2048]
[1751460937587,0.7721,2441.4,2441.2,4.30114258]
[1751460937782,0.7721,2441.4,2441.2,0.2048]
[1751460938283,0.7721,2441.4,2441.2,4.30112345]
[1751460938794,0.7721,2441.4,2441.3,4.09617826]
[1751460938994,0.02,2441.5,2441.3,4.09617826]
[1751460939305,0.02,2441.5,2441.4,4.09601048]
[1751460939475,0.02,2441.5,2441.2,4.30111651]
[1751460939681,0.02,2441.5,2441.3,4.0960726]
[1751460940004,0.02,2441.5,2441.4,4.09601048]
[1751460940207,0.02,2441.5,2441.4,4.30001048]
[1751460940715,0.02,2441.5,2441.4,0.204]
[1751460942114,0.02,2441.5,2441.4,4.30001048]
[1751460945397,0.02,2441.5,2441.4,5.12471048]
[1751460945599,0.02,2441.5,2441.4,22.39321137]
[1751460946123,0.02,2441.5,2441.4,15.12471048]
[1751460948116,0.02,2441.5,2441.4,22.39321137]
[1751460949423,0.02,2441.5,2441.4,15.12471048]
[1751460951316,0.02,2441.5,2441.4,21.77171048]
[1751460952592,0.02,2441.5,2441.4,20.94701048]
[1751460953329,0.02,2441.5,2441.4,14.30001048]
[1751460953792,0.02,2441.5,2441.4,16.851]
[1751460954294,0.7971,2441.5,2441.4,16.851]
[1751460954726,0.7971,2441.5,2441.4,10.204]
[1751460954894,0.7971,2441.5,2441.4,16.851]
[1751460955302,0.02,2441.5,2441.4,20.94701048]
[1751460955825,0.02,2441.5,2441.4,14.30001048]
[1751460957235,0.02,2441.5,2441.4,15.05431048]
[1751460959835,0.02,2441.5,2441.4,20.94701048]
[1751460962330,0.02,2441.5,2441.4,14.30001048]
[1751460962538,0.02,2441.5,2441.4,10.204]
[1751460962743,0.02,2441.5,2441.4,20.94601048]
[1751460968958,0.02,2441.5,2441.4,21.77371048]
[1751460971568,1e-08,2441.5,2441.4,29.04221137]
[1751460972137,0.01,2441.8,2441.7,14.92550722]
[1751460972476,0.01,2441.8,2441.7,28.84000811]
[1751460972679,0.01,2441.8,2441.7,29.04400811]
[1751460974034,0.01,2441.8,2441.7,21.77550722]
[1751460977568,0.01,2442.0,2441.9,4.09517179]
[1751460977776,0.01,2442.0,2441.9,10.74017179]
[1751460977938,0.01,2442.0,2441.9,4.29917179]
[1751460978143,0.98877125,2442.0,2441.9,10.94417179]
[1751460979868,0.98877125,2442.0,2441.9,4.29917179]
[1751460980073,0.98877125,2442.0,2441.9,10.94417179]
[1751460980372,0.98877125,2442.0,2441.9,4.29917179]
[1751460980669,0.8071,2441.9,2441.8,0.204]
[1751460980861,1.78587125,2441.9,2441.8,0.204]
[1751460981381,1.78587125,2441.9,2441.8,4.2993395]
[1751460982275,1.78587125,2441.9,2441.8,0.204]
[1751460982951,1.78587125,2441.9,2441.8,6.849]
[1751460986075,1.78595463,2441.9,2441.8,6.849]
[1751460986885,1.78595463,2441.9,2441.8,0.204]
[1751460987246,9.05445552,2441.9,2441.8,0.204]
[1751460987460,1.0225,2441.8,2441.4,6.645]
[1751460987772,0.97885463,2441.7,2441.4,10.74088916]
[1751460987974,0.97885463,2441.6,2441.4,10.74088916]
[1751460988176,0.97885463,2441.5,2441.4,10.74088916]
[1751460988381,0.97885463,2441.5,2441.4,4.09588916]
[1751460988704,0.7742,2441.8,2441.4,6.645]
[1751460988879,0.97870814,2441.7,2441.6,4.09558451]